Workbook

Sheet ADA CONSTRUCTION MAR 2024 CAA
A1: DEPARTMENT OF TRANSPORTATION - CALTRANS
A2: DBE Commitment at Award (CAA) on Federally Funded Major Construction Contracts - October 1, 2023 - March 31, 2024
A4: Total Award Amount Year-to-Date (YTD) | C4: Total DBE Commitment Amount YTD | F4: Total Prime Contracts Awarded YTD
A5: 1312583910 | C5: =SUM(C7:C18) -> 305024039.4 | F5: =SUM(C230:C247,I230:I247,F230:F247) -> 77
A6: Groups | C6: Commitment Dollars YTD | D6: Firms YTD | E6: Contracts YTD | F6: % of Contracts | G6: % of DBE $ | H6: % of Total $
A7: Hispanic American Male | C7: =SUMIF(D30:D108,"m", C30:C108) -> 96982220.15 | D7: =COUNTIF(D30:D108,"M") -> 61 | E7: =SUMIF(D30:D108,"M",E30:E108) -> 157 | F7: =E7/E20 -> 0.2940074906 | G7: =C7/C5 -> 0.3179494322 | H7: =C7/A5 -> 0.07388649169
A8: Hispanic American Female | C8: =SUMIF(D30:D108,"F", C30:C108) -> 35194052.2 | D8: =COUNTIF(D30:D108,"F") -> 17 | E8: =SUMIF(D30:D108,"F",E30:E108) -> 79 | F8: =E8/E20 -> 0.1479400749 | G8: =C8/C5 -> 0.115381241 | H8: =C8/A5 -> 0.02681280178
A9: African American Male | C9: =SUMIF(D125:D137,"m", C125:C137) -> 8836232 | D9: =COUNTIF(D125:D137,"M") -> 9 | E9: =SUMIF(D125:D137,"M",E125:E137) -> 18 | F9: =E9/E20 -> 0.03370786517 | G9: =C9/C5 -> 0.02896896919 | H9: =C9/A5 -> 0.006731936856
A10: African American Female | C10: =SUMIF(D125:D137,"F", C125:C137) -> 9499948.62 | D10: =COUNTIF(D125:D137,"F") -> 3 | E10: =SUMIF(D125:D137,"F",E125:E137) -> 14 | F10: =E10/E20 -> 0.02621722846 | G10: =C10/C5 -> 0.03114491775 | H10: =C10/A5 -> 0.007237593382
A11: Asian Pacific Male | C11: =SUMIF(D154:D166,"m", C154:C166) -> 10704747.51 | D11: =COUNTIF(D154:D166,"M") -> 7 | E11: =SUMIF(D154:D166,"M",E154:E166) -> 20 | F11: =E11/E20 -> 0.03745318352 | G11: =C11/C5 -> 0.03509476673 | H11: =C11/A5 -> 0.008155476712
A12: Asian Pacific Female | C12: =SUMIF(D154:D166,"F", C154:C166) -> 9478350.11 | D12: =COUNTIF(D154:D166,"F") -> 5 | E12: =SUMIF(D154:D166,"F",E154:E166) -> 25 | F12: =E12/E20 -> 0.0468164794 | G12: =C12/C5 -> 0.03107410854 | H12: =C12/A5 -> 0.007221138427
A13: Subcontinent Asian Male | C13: =SUMIF(D140:D151,"m", C140:C151) -> 32214734.35 | D13: =COUNTIF(D140:D151,"M") -> 9 | E13: =SUMIF(D140:D151,"M",E140:E151) -> 24 | F13: =E13/E20 -> 0.04494382022 | G13: =C13/C5 -> 0.1056137556 | H13: =C13/A5 -> 0.02454299044
A14: Subcontinent Asian Female | C14: =SUMIF(D140:D151,"F", C140:C151) -> 767276 | D14: =COUNTIF(D140:D151,"F") -> 2 | E14: =SUMIF(D140:D151,"F",E140:E151) -> 6 | F14: =E14/E20 -> 0.01123595506 | G14: =C14/C5 -> 0.002515460753 | H14: =C14/A5 -> 0.0005845538668
A15: Native American Male | C15: =SUMIF(D111:D122,"m", C111:C122) -> 13984576.12 | D15: =COUNTIF(D111:D122,"M") -> 7 | E15: =SUMIF(D111:D122,"M",E111:E122) -> 21 | F15: =E15/E20 -> 0.0393258427 | G15: =C15/C5 -> 0.04584745565 | H15: =C15/A5 -> 0.010654234
A16: Native American Female | C16: =SUMIF(D111:D122,"F", C111:C122) -> 1885216.8 | D16: =COUNTIF(D111:D122,"F") -> 4 | E16: =SUMIF(D111:D122,"F",E111:E122) -> 4 | F16: =E16/E20 -> 0.007490636704 | G16: =C16/C5 -> 0.006180551551 | H16: =C16/A5 -> 0.001436263835
A17: Non Minority Women | C17: =SUMIF(D173:D224,"F", C173:C224) -> 84125759.67 | D17: =COUNTIF(D173:D220,"F") -> 48 | E17: =SUMIF(D173:D220,"F",E173:E220) -> 165 | F17: =E17/E20 -> 0.308988764 | G17: =C17/C5 -> 0.2758004249 | H17: =C17/A5 -> 0.06409171942
A18: Other Men | C18: =SUMIF(D169:D170,"m", C169:C170) -> 1350925.9 | D18: =COUNTIF(D169:D170,"M") -> 1 | E18: =SUMIF(D169:D170,"M",E169:E170) -> 1 | F18: =E18/E20 -> 0.001872659176 | G18: =C18/C5 -> 0.004428916168 | H18: =C18/A5 -> 0.001029211077
F19: =E19/E20 -> 0 | G19: =C19/C5 -> 0 | H19: =C19/A5 -> 0
A20: Total | C20: =SUM(C7:C18) -> 305024039.4 | D20: =SUM(D7:D19) -> 173 | E20: =SUM(E7:E19) -> 534
A21: Total Primes Contracts | C21: =SUM(C230:C247,I230:I247,F230:F247) -> 77
A23: Yellow = DBEs | C23: Green = Trucking | D23: 25 | E23: 37193812.92 | F23: 0.1409037664
A24: Red = Prime Contractor | C24: Blue = Supplier | D24: 29 | E24: 54228818 | F24: 0.205438596
A25: Red Italic = DBE firm as Prime | C25: White = Other | D25: 108 | E25: 172543435.2 | F25: 0.6536576376
A26: BOLD = women
A27: * = Used both as Trucking & Supplier
A29: Hispanic American | B29: Column1 | C29: Dollars | D29: M/F | E29: Contract | F29: Contract # | G29: Number of Primes | H29: Prime Name | I29: Districts
A30: 3P LANDSCAPING | B30: -4142 | C30: 1400555 | D30: M | E30: 3 | F30: =fetchcomment(E30) -> 08-1C5704 12-0N8904 06-0X3804 | G30: 3 | H30: =fetchcomment(G30) -> SEMA CONSTRUCTION INC SECURITY PAVING COMPANY, INC. GRIFFITH COMPANY | I30: 6,8,12
A31: A & M CONSULTING ENGINEERS | B31: -4142 | C31: 15600 | D31: M | E31: 1 | F31: =fetchcomment(E31) -> 10-1E3004 | G31: 1 | H31: =fetchcomment(G31) -> BAY CITIES PAVING & GRADING, INC. | I31: 10
A32: A STAR SWEEPING | B32: 43 | C32: 1001080 | D32: M | E32: 6 | F32: =fetchcomment(E32) -> 01-0J6314 03-4H0704 01-0E11U4 03-1H9904 03-3H6104 01-0H1504 | G32: 6 | H32: =fetchcomment(G32) -> GRANTIE CONSTRUCTION COMPANY DESILVA GATES CONSTRUCTION LLC A. TEICHERT & SON INC DBA TEICHERT CONSTRUCTION O.C. JONES & SONS INC BAY CITIES PAVING & GRADING INC CAL VALLEY CONSTRUCTION INC | I32: 1,3,4,6
A33: ABSL CONSTRUCTION | B33: -4142 | C33: 5546639.55 | D33: M | E33: 16 | F33: =fetchcomment(E33) -> 01-0J6314 02-4H0204 03-4H0704 10-0G8304 01-0E11U4 03-1H9904 11-430254 03-1H6304 04-4J5404 05-1H3104 10-1E3004 04-1Q5814 01-0C55U4 03-2J3204 03-3H6104 04-1J9604 06-0X3004 06-1A4604 01-0H1504 04-3W7504 04-3W7604 07-322504 | G33: 11 | H33: =fetchcomment(G33) -> GRANTIE CONSTRUCTION COMPANY TULLIS INC DESILVA GATES CONSTRUCTION LLC VIKING CONSTRUCTION COMPANY A. TEICHERT & SON INC DBA TEICHERT CONSTRUCTION CSI/CJA A JOINT VENTURE O.C. JONES & SONS, INC. GHILOTTI BROS, INC. BAY CITIES PAVING & GRADING, INC. AMERICAN CIVIL CONSTRUCTORS WEST COAST, LLC dba ACC WEST COAST BEADOR CONSTRUCTION COMPANY, INC. | I33: 1,2,3,4,7,10,11
A34: AERO-ENVIRONMENTAL CONSULTING | B34: -4142 | C34: 22000 | D34: M | E34: 1 | F34: =fetchcomment(E34) -> 04-3W7604 | G34: 1 | H34: =fetchcomment(G34) -> AMERICAN CIVIL CONSTRUCTORS WEST COAST, LLC | I34: 4
A35: ALL STATE TRUCKING | B35: 43 | C35: 51260 | D35: M | E35: 1 | F35: =fetchcomment(E35) -> 08-1C5704 | G35: 1 | H35: =fetchcomment(G35) -> SEMA CONSTRUCTION | I35: 8
A36: ALCORN FENCE COMPANY | B36: -4142 | C36: 67989 | D36: M | E36: 1 | F36: =fetchcomment(E36) -> 07-322904 | G36: 1 | H36: =fetchcomment(G36) -> C. A. RASMUSSEN, INC. | I36: 7
A37: ALFARO GENERAL ENGINEERING | B37: -4142 | C37: 21070695.44 | D37: M | E37: 2 | F37: =fetchcomment(E37) -> 07-338604 | G37: 1 | H37: =fetchcomment(G37) -> ALFARO COMMUNICATIONS CONSTRUCTION, INC. | I37: 7,8
A38: ALTAMONT REBAR CORP | B38: -4142 | C38: 472500 | D38: M | E38: 1 | F38: =fetchcomment(E38) -> 04-2Q5704 | G38: 1 | H38: =fetchcomment(G38) -> DISNEY CONSTRUCTION, INC. | I38: 4
A39: ALVAREZ AND SHAW INC | B39: 43 | C39: 2183337 | D39: M | E39: 1 | F39: =fetchcomment(E39) -> 11-430304 | G39: 1 | H39: =fetchcomment(G39) -> SB GENERAL ENGINEERING | I39: 11
A40: ANCO IRON & CONSTRUCTION | B40: -4142 | C40: 295699.79 | D40: M | E40: 1 | F40: =fetchcomment(E40) -> 09-368004 | G40: 1 | H40: =fetchcomment(G40) -> PAPICH CONSTRUCITON COMPANY INC | I40: 9
A41: ARBISO TRANPORTATION INC | B41: 43 | C41: 1377920 | D41: M | E41: 3 | F41: =fetchcomment(E41) -> 02-3H6504 02-4H0204 02-4H0504 | G41: 2 | H41: =fetchcomment(G41) -> J.F. SHEA CONSTRUCTION INC TULLIS INC | I41: 2
A42: ARGUELLO CONCRETE CONSTRUCTION | B42: -4142 | C42: 110160 | D42: M | E42: 1 | F42: =fetchcomment(E42) -> 06-0X3004 | G42: 1 | H42: =fetchcomment(G42) -> BAY CITIES PAVING AND GRADING | I42: 6
A43: AUSTIN ENTERPRISE | B43: -4142 | C43: 3652175 | D43: F | E43: 13 | F43: =fetchcomment(E43) -> 10-0G8304 01-0E11U4 03-1H9904 11-430394 05-1H3104 10-1E3004 11-2T3434 03-3H6104 01-0H1504 04-3W7504 04-3W7604 06-0X2604 07-322504 | G43: 9 | H43: =fetchcomment(G43) -> VIKING CONSTRUCTION COMPANY INC GRANITE CONSTRUCTION COMPANY A. TEICHERT & SON INC DBA TEICHERT CONSTRUCTION GRIFFITH COMPANY BAY CITIES PAVING & GRADING, INC. WALSH CONSTRUCTION COMPANY II, LLC DESILVA GATES CONSTRUCTION LLC AMERICAN CIVIL CONSTRUCTORS WEST COAST, LLC dba ACC WEST COAST BEADOR CONSTRUCTION COMPANY, INC. | I43: 1,3,4,5,6,7,10,11
A44: BARGAS ENVIRONMENTAL CONSULTING | B44: -4142 | C44: 96990 | D44: F | E44: 2 | F44: =fetchcomment(E44) -> 03-4H0704 03-1H9904 | G44: 2 | H44: =fetchcomment(G44) -> DESILVA GATES CONSTRUCTION LLC A. TEICHERT & SON INC DBA TEICHERT CONSTRUCTION | I44: 3
A45: BAY LINE CUTTING AND CORING | B45: -4142 | C45: 20520 | D45: M | E45: 1 | F45: =fetchcomment(E45) -> 04-0K7804 | G45: 1 | H45: =fetchcomment(G45) -> GHILOTTI BROS INC | I45: 4
A46: BELLAGIO CONSTRUCITON | B46: -4142 | C46: 50547 | D46: M | E46: 1 | F46: =fetchcomment(E46) -> 06-0X3004 | G46: 1 | H46: =fetchcomment(G46) -> BAY CITIES PAVING AND GRADING | I46: 6
A47: BERT W. SALAS | B47: -4142 | C47: 715884 | D47: M | E47: 1 | F47: =fetchcomment(E47) -> 11-2T3434 | G47: 1 | H47: =fetchcomment(G47) -> WALSH CONSTRUCTION COMPANY II, LLC | I47: 11
A48: BLANCO CONSTRUCTION | B48: -4142 | C48: 158500 | D48: M | E48: 1 | F48: =fetchcomment(E48) -> 12-0S3104 | G48: 1 | H48: =fetchcomment(G48) -> AUTOBAHN CONSTRUCTION INC. | I48: 12
A49: BRUCE ANDERSON | B49: -4142 | C49: 927740 | D49: M | E49: 1 | F49: =fetchcomment(E49) -> 07-320804 | G49: 1 | H49: =fetchcomment(G49) -> CALPROMAX ENGINEERING, INC. | I49: 7
A50: BT TRUCKING | B50: 43 | C50: 1740496.6 | D50: M | E50: 2 | F50: =fetchcomment(E50) -> 12-0S1504 03-3H6104 | G50: 2 | H50: =fetchcomment(G50) -> POWELL CONSTRUCTORS, INC DESILVA GATES CONSTRUCTOIN LLC | I50: 3,12
A51: C & N REINFORCING INC | B51: -4142 | C51: 679550.64 | D51: M | E51: 3 | F51: =fetchcomment(E51) -> 04-0K7804 04-4J5404 10-1E3004 | G51: 2 | H51: =fetchcomment(G51) -> BAY CITIES PAVING & GRADING, INC. GHILOTTI BROS, INC. | I51: 4
A52: CENTRAL COAST TRAFFIC SAFETY, INC. | B52: -4142 | C52: 852349.7 | D52: M | E52: 2 | F52: =fetchcomment(E52) -> 05-1H3104 09-368004 | G52: 2 | H52: =fetchcomment(G52) -> GRANITE CONSTRUCTION COMPANY PAPICH CONSTRUCITON COMPANY INC | I52: 5,9
A53: CHAVEZ TRUCKING | B53: 43 | C53: 2056114.65 | D53: F | E53: 1 | F53: =fetchcomment(E53) -> 04-1Q5814 | G53: 1 | H53: =fetchcomment(G53) -> BAY CITIES PAVING & GRADING, INC. | I53: 4
A54: CLAY MIRANDA TRUCKING | B54: -4142 | C54: 409616.88 | D54: M | E54: 1 | F54: =fetchcomment(E54) -> 06-0X2604 | G54: 1 | H54: =fetchcomment(G54) -> A. TEICHERT & SON, INC. DBA TEICHERT CONSTRUCTION | I54: 6
A55: COASTLINE SWEEPERS | B55: -4142 | C55: 55890 | D55: F | E55: 1 | F55: =fetchcomment(E55) -> 05-1H3104 | G55: 1 | H55: =fetchcomment(G55) -> GRANITE CONSTRUCTION COMPANY | I55: 5
A56: COVARRUBIAS TRAFFIC CONTROL | B56: -4142 | C56: 515200 | D56: F | E56: 1 | F56: =fetchcomment(E56) -> 07-322504 | G56: 1 | H56: =fetchcomment(G56) -> BEADOR CONSTRUCTION COMPANY, INC. | I56: 7
A57: D.B. ELECTRIC, INC. | B57: -4142 | C57: 477570 | D57: M | E57: 1 | F57: =fetchcomment(E57) -> 07-351304 | G57: 1 | H57: =fetchcomment(G57) -> POWELL CONSTRUCTORS, INC. | I57: 7
A58: DELTA BAY CONSULTANTS LLC | B58: -4142 | C58: 24948 | D58: M | E58: 9 | F58: =fetchcomment(E58) -> 01-0J6314 10-1H6504 10-0G8304 01-0E11U4 04-4J5404 07-347504 01-0C55U4 03-4H8904 06-0X2604 | G58: 7 | H58: =fetchcomment(G58) -> GRANITE CONSTRUCTION COMPANY MARINA LANDSCAPE INC VIKING CONSTRUCTION COMPANY INC GHILOTTI BROS, INC. GRIFFITH COMPANY ST. FRANCIS ELECTRIC LLC A. TEICHERT & SON, INC. DBA TEICHERT CONSTRUCTION | I58: 1,3,4,6,7,10
A59: DESIGN BUILD ENGINEERING | B59: -4142 | C59: 1426760 | D59: M | E59: 2 | F59: =fetchcomment(E59) -> 07-322904 08-1H3804 | G59: 2 | H59: =fetchcomment(G59) -> C. A. RASMUSSEN, INC. ACCU CONSTRUCTION | I59: 7,8
A60: DIRT DYNASTY | B60: -4142 | C60: 4131946.98 | D60: M | E60: 3 | F60: =fetchcomment(E60) -> 10-1G2504 04-0Q0704 04-3W7604 | G60: 3 | H60: =fetchcomment(G60) -> DIRT DYNASTY ST. FRANCIS ELECTRIC LLC AMERICAN CIVIL CONSTRUCTORS WEST COAST, LLC | I60: 4,10
A61: DRAGON MATERIAL TRANSPORT | B61: 33 | C61: 7061140.88 | D61: F | E61: 8 | F61: =fetchcomment(E61) -> 02-3H6804 02-4H0204 02-4H6604 02-4H0504 03-4H6004 04-0K7804 04-4J5404 04-1J9604 | G61: 7 | H61: =fetchcomment(G61) -> J.F. SHEA CONSTRUCTION INC TULLIS INC STIMPEL-WIEBELHAUS ASSOCIATES TULLIS INC DESILVA GATES CONSTRUCTION LLC GHILOTTI BROS O.C. JONES & SONS INC | I61: 2,3,4
A62: E & L GONZALEZ ENGINEERING | B62: -4142 | C62: 1503549 | D62: M | E62: 1 | F62: =fetchcomment(E62) -> 07-330304 | G62: 1 | H62: =fetchcomment(G62) -> FEC FUTURE CONTRACTORS AND ENGINEERS INC | I62: 7
A63: ENDEMIC ENVIRONMENTAL SERVICES | B63: -4142 | C63: 188525 | D63: M | E63: 7 | F63: =fetchcomment(E63) -> 02-0J6404 08-1J2604 01-0C55U4 02-4H0004 01-0H1504 06-0X2604 07-322504 | G63: 6 | H63: =fetchcomment(G63) -> BALDWIN CONTRACTING COMPANY, INC. DBA KNIFE RIVER CONSTRUCTION MARTIN MARIETTA SAN DIEGO AGGREGATES LLC DBA ATP GENERAL ENGINEERING CONTRACTORS GRANITE CONSTRUCTION COMPANY ROCKY MOUNTAIN CONSTRUCTION A. TEICHERT & SON, INC. DBA TEICHERT CONSTRUCTION BEADOR CONSTRUCTION COMPANY, INC. | I63: 1,2,6,7,8
A64: FLASH TRAFFIC, INC. | B64: -4142 | C64: 100866 | D64: F | E64: 2 | F64: =fetchcomment(E64) -> 03-1H6304 06-0X2604 | G64: 2 | H64: =fetchcomment(G64) -> O.C. JONES & SONS, INC. A. TEICHERT & SON, INC. DBA TEICHERT CONSTRUCTION | I64: 3,6
A65: FRONTLINE TRAFFIC CONTROL | B65: -4142 | C65: 2001404 | D65: M | E65: 6 | F65: =fetchcomment(E65) -> 07-330304 07-322904 12-0S1504 07-347504 07-348804 07-349504 | G65: 5 | H65: =fetchcomment(G65) -> FEC FUTURE CONTRACTORS AND ENGINEERS INC C. A. RASMUSSEN, INC. POWELL CONSTRUCTORS INC GRIFFITH COMPANY ALFARO COMMUNICATIONS CONSTRUCTION | I65: 7,12
A66: FULL TRAFFIC MAINTENANCE, INC. | B66: -4142 | C66: 790325 | D66: M | E66: 2 | F66: =fetchcomment(E66) -> 07-338604 08-496124 | G66: 1 | H66: =fetchcomment(G66) -> ALFARO COMMUNICATIONS CONSTRUCTION, INC. | I66: 7,8
A67: G&F CONCRETE CUTTING, INC. | B67: -4142 | C67: 1103830.23 | D67: F | E67: 8 | F67: =fetchcomment(E67) -> 07-322904 11-430394 10-1E3004 11-2T3434 03-3H6104 06-0X3004 07-349504 07-322504 | G67: 7 | H67: =fetchcomment(G67) -> C. A. RASMUSSEN, INC. GRIFFITH COMPANY BAY CITIES PAVING & GRADING, INC. WALSH CONSTRUCTION COMPANY II, LLC DESILVA GATES CONSTRUCTION LLC ALFARO COMMUNICATIONS CONSTRUCITON INC BEADOR CONSTRUCTION COMPANY, INC. | I67: 3,6,7,11
A68: GEOSTRUCTURAL | B68: -4142 | C68: 1050496 | D68: M | E68: 2 | F68: =fetchcomment(E68) -> 12-0N8904 04-4K1404 | G68: 2 | H68: =fetchcomment(G68) -> SECURITY PAVING COMPANY, INC. GRANITE ROCK COMPANY | I68: 4,12
A69: GOLDEN BAY FENCE PLUS INC | B69: 33 | C69: 24674 | D69: M | E69: 1 | F69: =fetchcomment(E69) -> 04-0K7804 | G69: 1 | H69: =fetchcomment(G69) -> GHILOTTI BROS., INC. | I69: 4
A70: GOLDEN WEST FUEL | B70: -4142 | C70: 4001246 | D70: F | E70: 1 | F70: =fetchcomment(E70) -> 11-430254 | G70: 1 | H70: =fetchcomment(G70) -> BALDWIN CONTRACTING COMPANY, INC. DBA KNIFE RIVER CONSTRUCTION | I70: 11
A71: GRIT & GRAVEL | B71: -4142 | C71: 2851202.34 | D71: F | E71: 1 | F71: =fetchcomment(E71) -> 07-322904 | G71: 1 | H71: =fetchcomment(G71) -> C. A. RASMUSSEN, INC. | I71: 7
A72: HER-CON CONSTRUCTION SERVICES | B72: -4142 | C72: 363047.63 | D72: M | E72: 1 | F72: =fetchcomment(E72) -> 07-355104 | G72: 1 | H72: =fetchcomment(G72) -> ALDRIDGE ELECTRIC, INC. | I72: 7
A73: HIGH LIGHT ELECTRIC INC | B73: -4142 | C73: 6881407 | D73: M | E73: 6 | F73: =fetchcomment(E73) -> 06-0U4304 06-0X3304 11-430394 05-1H3104 11-2T3434 07-322504 | G73: 5 | H73: =fetchcomment(G73) -> GRIFFITH COMPANY SECURITY PAVING COMPANY GRANITE CONSTRUCTION COMPANY WALSH CONSTRUCTION COMPANY II, LLC BEADOR CONSTRUCTION COMPANY, INC. | I73: 5,6,7,12
A74: J PEREZ TRANSPORT | B74: 43 | C74: 359880 | D74: M | E74: 1 | F74: =fetchcomment(E74) -> 09-368004 | G74: 1 | H74: =fetchcomment(G74) -> PAPICH CONSTRUCITON COMPANY INC | I74: 9
A75: JEFFERSON STATE HIGHWAY INC | B75: -4142 | C75: 1089102.66 | D75: M | E75: 10 | F75: =fetchcomment(E75) -> 01-0J6314 02-3H6504 02-3H82U4 02-4H6604 02-0J6404 02-4H0504 03-1H6304 01-0C55U4 02-4H0004 09-368004 | G75: 9 | H75: =fetchcomment(G75) -> GRANITE CONSTRUCTION COMPANY J.F. SHEA CONSTRUCTION INC HAT CREEK CONSTRUCTION & MATERIALS INC STIMPEL-WIEBELHAUS ASSOCIATES INC BALDWIN CONTRACTING COMPANY INC TULLIS INC O.C. JONES & SONS, INC. ROCKY MOUNTAIN CONSTRUCTION PAPICH CONSTRUCTION COMPANY INC | I75: 1,2,3,9
A76: KODIAK TRUCKING INC | B76: 43 | C76: 452270 | D76: M | E76: 1 | F76: =fetchcomment(E76) -> 06-0X3304 | G76: 1 | H76: =fetchcomment(G76) -> SECURITY PAVING COMPANY INC | I76: 6
A77: L&B METAL PRODUCT FABRICATION | B77: -4142 | C77: 131038.05 | D77: M | E77: 1 | F77: =fetchcomment(E77) -> 02-4H0504 | G77: 1 | H77: =fetchcomment(G77) -> TULLIS INC | I77: 2
A78: LA FIRMA INC | B78: -4142 | C78: 110700 | D78: M | E78: 4 | F78: =fetchcomment(E78) -> 01-0J6314 05-1H3104 01-0C55U4 06-0W9704 | G78: 2 | H78: =fetchcomment(G78) -> GRANITE CONSTRUCTION BORTOLUSSI & WATKIN INC | I78: 1,5,6
A79: LA STEEL SERVICES, INC. | B79: -4142 | C79: 1959475.05 | D79: M | E79: 2 | F79: =fetchcomment(E79) -> 12-0N8904 07-322504 | G79: 2 | H79: =fetchcomment(G79) -> SECURITY PAVING COMPANY, INC. BEADOR CONSTRUCTION COMPANY, INC. | I79: 7,12
A80: LOGISTICAL ENTERPRISES | B80: 33 | C80: 1916163.76 | D80: F | E80: 7 | F80: =fetchcomment(E80) -> 03-1H9904 07-320804 02-0J6404 03-4H6004 03-1H6304 03-2J3204 03-3H6104 | G80: 5 | H80: =fetchcomment(G80) -> A. TEICHERT & SON INC DBA TEICHERT CONSTRUCTION CALPROMAX ENGINEERING, INC. DESILVA GATES CONSTRUCTION CSI/CJA A JOINT VENTURE O.C. JONES & SONS, INC. | I80: 2,3,7
A81: LONE STAR LANDSCAPE | B81: -4142 | C81: 240438 | D81: M | E81: 5 | F81: =fetchcomment(E81) -> 03-1H6304 04-2Q5704 04-3Q7604 04-0Q0704 04-4K1404 | G81: 5 | H81: =fetchcomment(G81) -> O.C. JONES & SONS, INC. DISNEY CONSTRUCTION, INC. GHILOTTI BROS INC ST. FRANCIS ELECTRIC LLC GRANITE ROCK COMPANY | I81: 3,4
A82: M & S ENVIRONMENTAL LANDSCAPES | B82: 33 | C82: 1586339.5 | D82: M | E82: 8 | F82: =fetchcomment(E82) -> 01-0H6104 02-3H6504 02-3H82U4 02-4H0204 02-4H6604 01-0E11U4 02-0J6404 02-4H0504 | G82: 7 | H82: =fetchcomment(G82) -> MERCER FRASER COMPANY J.F. SHEA CONSTRUCTION INC HAT CREEK CONSTRUCTION AND MATERIALS INC TULLIS INC SATIMPEL-WIEBELHAUS ASSOCIATES INC GRANITE CONSTRUCTION COMPANY BALDWIN CONTRACTING DBA KNIFE RIVER | I82: 1,2
A83: MANERI TRAFFIC CONTROL | B83: -4142 | C83: 7837739.74 | D83: F | E83: 10 | F83: =fetchcomment(E83) -> 11-430394 12-0N8904 07-321604 08-1H3804 11-430254 07-351304 08-1H9914 08-1J2604 07-322504 07-355104 | G83: 10 | H83: =fetchcomment(G83) -> GRIFFITH COMPANY SECURITY PAVING COMPANY, INC. RJ NOBLE COMPANY ACCU CONSTRUCTION INC CSI/CJA A JOINT VENTURE POWELL CONSTRUCTORS, INC. PETERSON-CHASE GENERAL ENGINEERING CONSTRUCTION INC. MARTIN MARIETTA SAN DIEGO AGGREGATES LLC DBA ATP GENERAL ENGINEERING CONTRACTORS BEADOR CONSTRUCTION COMPANY, INC. ALDRIDGE ELECTRIC, INC. | I83: 7,8,11,12
A84: MESA TRAFFIC SERVICES | B84: -4142 | C84: 238875 | D84: M | E84: 1 | F84: =fetchcomment(E84) -> 06-0X3004 | G84: 1 | H84: =fetchcomment(G84) -> BAY CITIES PAVING AND GRADING | I84: 6
A85: MJD ENGINEERING | B85: -4142 | C85: 8469616 | D85: M | E85: 2 | F85: =fetchcomment(E85) -> 03-4H6004 03-3H6104 | G85: 2 | H85: =fetchcomment(G85) -> TULLIS INC DESILVA GATES CONSTRUCITON LLC | I85: 2,3
A86: MONZON & SON ENTERPRISES, INC. | B86: 43 | C86: 1353492 | D86: M | E86: 2 | F86: =fetchcomment(E86) -> 12-0N8904 07-322504 | G86: 2 | H86: =fetchcomment(G86) -> SECURITY PAVING COMPANY, INC. BEADOR CONSTRUCTION COMPANY, INC. | I86: 7,12
A87: MORALES CONTRACTING | B87: -4142 | C87: 69092.5 | D87: M | E87: 1 | F87: =fetchcomment(E87) -> 11-430254 | G87: 1 | H87: =fetchcomment(G87) -> CSI/CJA A JOINT VENTURE | I87: 11
A88: POLO ENGINEERING INC | B88: -4142 | C88: 2058303.6 | D88: F | E88: 1 | F88: =fetchcomment(E88) -> 07-357004 | G88: 1 | H88: =fetchcomment(G88) -> POLO ENGINEERING INC | I88: 7
A89: PRE-CON PRODUCTS LTD | B89: -4142 | C89: 698314.93 | D89: M | E89: 3 | F89: =fetchcomment(E89) -> 06-0U4304 05-1H3104 06-0X3004 | G89: 2 | H89: =fetchcomment(G89) -> GRIFFITH COMPANY GRANITE CONSTRUCTION COMPANY | I89: 5, 6
A90: QA CONSTRUCTORS | B90: -4142 | C90: 354020 | D90: M | E90: 1 | F90: =fetchcomment(E90) -> 10-0G8304 | G90: 1 | H90: =fetchcomment(G90) -> VIKING CONSTRUCTION COMPANY INC | I90: 10
A91: QUALITY TRAFFIC CONTROL | B91: -4142 | C91: 1368247.4 | D91: M | E91: 2 | F91: =fetchcomment(E91) -> 08-1C5704 08-1G6404 | G91: 2 | H91: =fetchcomment(G91) -> SEMA CONSTRUCTION INC SULLY-MILLER CONTRACTING COMPANY | I91: 8
A92: RANGEL BROTHERS TRUCKING | B92: 43 | C92: 1680735 | D92: M | E92: 1 | F92: =fetchcomment(E92) -> 06-0X3304 | G92: 1 | H92: =fetchcomment(G92) -> SECURITY PAVING COMPANY | I92: 6
A93: REYCON CONSTRUCTION, INC. | B93: -4142 | C93: 2355700 | D93: M | E93: 1 | F93: =fetchcomment(E93) -> 11-2T3434 | G93: 1 | H93: =fetchcomment(G93) -> WALSH CONSTRUCTION COMPANY II, LLC | I93: 11
A94: ROBINSON SWEEPING INC | B94: 43 | C94: 636700 | D94: F | E94: 3 | F94: =fetchcomment(E94) -> 01-0H6104 04-3Q7604 06-0X2604 | G94: 3 | H94: =fetchcomment(G94) -> MERCER FRASER COMPANY GHILOTTI BROS A. TEICHERT & SON, INC. DBA TEICHERT CONSTRUCTION | I94: 1,4,6
A95: RUPERT CONSTRUCTION SUPPLY | B95: 33 | C95: 3390227.98 | D95: M | E95: 1 | F95: =fetchcomment(E95) -> 03-3H6104 | G95: 1 | H95: =fetchcomment(G95) -> DESILVA GATES CONSTRUCTION LLC | I95: 3
A96: S & S TRUCKING | B96: 43 | C96: 73689.55 | D96: M | E96: 3 | F96: =fetchcomment(E96) -> 04-0K7804 04-4J5404 04-4K1404 | G96: 2 | H96: =fetchcomment(G96) -> GHILOTTI BROS., INC. GRANITE ROCK COMPANY | I96: 4
A97: SANDOVAL SWEEPING | B97: 43 | C97: 700000 | D97: M | E97: 1 | F97: =fetchcomment(E97) -> 07-321604 | G97: 1 | H97: =fetchcomment(G97) -> R.J. NOBLE COMPANY | I97: 7
A98: SANTAMARIA CONCRETE | B98: -4142 | C98: 761158.72 | D98: M | E98: 1 | F98: =fetchcomment(E98) -> 04-3W7504 | G98: 1 | H98: =fetchcomment(G98) -> AMERICAN CIVIL CONSTRUCTORS WEST COAST, LLC dba ACC WEST COAST | I98: 4
A99: SIERRA TREE COMPANY | B99: -4142 | C99: 42000 | D99: M | E99: 1 | F99: =fetchcomment(E99) -> 04-4G21A4 | G99: 1 | I99: 4
A100: SWPPQUEEN | B100: -4142 | C100: 267945 | D100: F | E100: 6 | F100: =fetchcomment(E100) -> 03-4H0704 07-322904 03-4H6004 07-347504 11-2T3434 03-3H6104 | G100: 4 | I100: 3,7,11
A101: T.D.W. CONSTRUCTION INC | B101: -4142 | C101: 204530 | D101: M | E101: 1 | F101: =fetchcomment(E101) -> 03-4H0704 | G101: 1 | I101: 3
A102: TAYLOR JANE CONSTRUCTION LP | B102: -4142 | C102: 474635 | D102: F | E102: 1 | F102: =fetchcomment(E102) -> 06-0X2604 | G102: 1 | I102: 6
A103: TOTAL SITE SUPPLY COMPANY | B103: -4142 | C103: 44108.6 | D103: M | E103: 1 | F103: =fetchcomment(E103) -> 06-0X2604 | G103: 1 | I103: 6
A104: TR DIGITAL, INC. | B104: -4142 | C104: 848000 | D104: M | E104: 1 | F104: =fetchcomment(E104) -> 03-4H8904 | G104: 1 | I104: 3
A105: TULLY INC | B105: -4142 | C105: 507910 | D105: F | E105: 13 | F105: =fetchcomment(E105) -> 10-1H6504 10-0G8304 03-1H9904 07-320804 03-1H6304 10-1E3004 04-1Q5814 03-2J3204 04-1J9604 04-3Q7604 06-0X3004 03-4H8904 04-0Q0704 | G105: 8 | I105: 3,4,6,10
A106: VALDIVIA TRUCKING | B106: 43 | C106: 5243956 | D106: M | E106: 5 | F106: =fetchcomment(E106) -> 01-0J6314 01-0E11U4 01-0C55U4 04-1J9604 03-4H8904 | G106: 3 | I106: 1,4
A107: WESTERN TRAFFIC SUPPLY, INC. | B107: -4142 | C107: 5121920 | D107: M | E107: 4 | F107: =fetchcomment(E107) -> 04-1Q5814 10-1E3004 04-3W7504 04-3W7604 | G107: 2 | I107: 4,10
F108: =fetchcomment(E108) ->  | H108: =fetchcomment(G108) -> 
A110: Native American | B110: Column1 | C110: Dollars | D110: M/F | E110: Contract | F110: Contract # | G110: Number of Primes | H110: Prime Name | I110: Districts
A111: CREST EQUIPMENT | B111: -4142 | C111: 757512 | D111: F | E111: 1 | F111: =fetchcomment(E111) -> 11-430254 | G111: 1 | H111: =fetchcomment(G111) -> CSI/CJA A JOINT VENTURE | I111: 11
A112: DISABLED AMERICAN VETERAN | B112: 33 | C112: 197013.78 | D112: M | E112: 1 | F112: =fetchcomment(E112) -> 06-1A4604 | G112: 1 | H112: =fetchcomment(G112) -> CAL VALLEY CONSTRUCTION INC | I112: 6
A113: FORCE TRAFFIC CONTROL | B113: -4142 | C113: 479000 | D113: M | E113: 1 | F113: =fetchcomment(E113) -> 06-0X3804 | G113: 1 | H113: =fetchcomment(G113) -> GRIFFITH COMPANY | I113: 6
A114: GLOBAL TRANSLOADING | B114: -4142 | C114: 49230 | D114: F | E114: 1 | F114: =fetchcomment(E114) -> 07-351304 | G114: 1 | H114: =fetchcomment(G114) -> POWELL CONSTRUCTORS, INC. | I114: 7
A115: KRC SAFETY CO INC | B115: 33 | C115: 1767565 | D115: M | E115: 9 | F115: =fetchcomment(E115) -> 10-0G8304 10-1L6304 02-0J6404 04-1J9604 06-0W9704 06-1A4604 09-368004 04-0Q0704 06-0X2604 | G115: 9 | H115: =fetchcomment(G115) -> VIKING CONSTRUCTION COMPANY CORAL CONSTRUCTION COMPANY BALDWIN CONTRACTING COMPANY INC DBA KNIFE RIVER O.C. JONES & SONS INC BORTOLUSSI & WATKIN INC CAL VALLEY CONSTRUCTION INC PAPICH CONSTRUCITON COMPANY ST. FRANCIS ELECTRIC LLC A. TEICHERT & SON, INC. DBA TEICHERT CONSTRUCTION | I115: 2,4,6,9,10
A116: MCCULLOUGH CONSTRUCTION INC | B116: -4142 | C116: 8619677.84 | D116: M | E116: 1 | F116: =fetchcomment(E116) -> 01-434844 | G116: 1 | H116: =fetchcomment(G116) -> MCCULLOUGH CONSTRUCTION INC | I116: 1
A117: S.T. RHOADES CONSTRUCTION | B117: -4142 | C117: 1320062 | D117: M | E117: 3 | F117: =fetchcomment(E117) -> 01-0H6104 02-0J6404 02-4H0504 | G117: 3 | H117: =fetchcomment(G117) -> MERCER FRASER BALDWIN CONTRACTING DBA KNIFE RIVER TULLIS INC | I117: 1,2
A118: SAM'S EQUIPMENT & SUPPLIES | B118: 33 | C118: 1411957.5 | D118: M | E118: 5 | F118: =fetchcomment(E118) -> 10-1H6504 03-1H9904 12-0S1504 06-0W9704 09-368004 | G118: 5 | H118: =fetchcomment(G118) -> MARINA LANDSCAPE INC A. TEICHERT & SON INC DBA TEICHERT CONSTRUCTION POWELL CONSTRUCTORS INC BORTOLUSSI & WATKIN INC PAPICH CONSTRUCTION COMPANY | I118: 3,6,9,10,12
A119: SPIRIT ROAD OILS | B119: -4142 | C119: 151710 | D119: F | E119: 1 | F119: =fetchcomment(E119) -> 01-0H1504 | G119: 1 | H119: =fetchcomment(G119) -> GRANITE CONSTRUCTION COMPANY | I119: 1
A120: TOTAL TRAFFIC CONTROL | B120: 33 | C120: 189300 | D120: M | E120: 1 | F120: =fetchcomment(E120) -> 10-1H6504 | G120: 1 | H120: =fetchcomment(G120) -> MARINA LANDSCAPE INC | I120: 10
A121: WEST COAST DRILLING | B121: -4142 | C121: 926764.8 | D121: F | E121: 1 | F121: =fetchcomment(E121) -> 01-0J6314 | G121: 1 | H121: =fetchcomment(G121) -> GRANITE CONSTRUCTION COMPANY | I121: 1
F122: =fetchcomment(E122) ->  | H122: =fetchcomment(G122) -> 
A124: African American | B124: Column1 | C124: Dollars | D124: M/F | E124: Contract | F124: Contract # | G124: Number of Primes | H124: Prime Name | I124: Districts
A125: ALLUVION BIOLOGICAL CONSULTING | B125: -4142 | C125: 536010 | D125: M | E125: 1 | F125: =fetchcomment(E125) -> 01-0E11U4 | G125: 1 | H125: =fetchcomment(G125) -> GRANITE CONSTRUCTION COMPANY | I125: 1
A126: APPIAN UDBE SWPPPS | B126: -4142 | C126: 850 | D126: F | E126: 1 | F126: =fetchcomment(E126) -> 02-4H0004 | G126: 1 | H126: =fetchcomment(G126) -> ROCKY MOUNTAIN CONSTRUCTION | I126: 2
A127: BLACK DIAMOND ASPHALT INC | B127: 33 | C127: 9380380.37 | D127: F | E127: 10 | F127: =fetchcomment(E127) -> 01-0H6104 02-3H6504 03-4H0704 03-1H9904 02-0J6404 03-1H6304 10-1E3004 01-0C55U4 03-2J3204 06-0X3004 | G127: 8 | H127: =fetchcomment(G127) -> MERCER FRASER COMPANY J.F. SHEA CONSTRUCTION INC DESILVA GATES CONSTRUCTION LLC A. TEICHERT & SON INC DBA TEICHERT CONSTRUCTION BALDWIN CONTRACTING COMPANY INC DBA KNIFE RIVER O.C. JONES & SONS, INC. BAY CITIES PAVING & GRADING, INC. GRANITE CONSTRUCTION COMPANY | I127: 1,2,3,6,10
A128: CGO CONSTRUCTION COMPANY | B128: -4142 | C128: 119600 | D128: M | E128: 2 | F128: =fetchcomment(E128) -> 11-430394 12-0N8904 | G128: 2 | H128: =fetchcomment(G128) -> GRIFFITH COMPANY SECURITY PAVING COMPANY, INC. | I128: 11,12
A129: DEPENDABLE PETROLEUM PRODUCTS | B129: 33 | C129: 6520183 | D129: M | E129: 5 | F129: =fetchcomment(E129) -> 08-1G6404 11-430254 08-1J2604 03-3H6104 01-0H1504 | G129: 5 | H129: =fetchcomment(G129) -> SULLY-MILLER CONTRACTING COMPANY CSI/CJA A JOINT VENTURE MARTIN MARIETTA SAN DIEGO AGGREGATES LLC DBA ATP GENERAL ENGINEERING CONTRACTORS DESILVA GATES CONSTRUCTION LLC GRANITE CONSTRUCTION COMPANY | I129: 1,3,8,11
A130: DOUBLE G'S SUPPLY, INC. | B130: 33 | C130: 118718.25 | D130: F | E130: 3 | F130: =fetchcomment(E130) -> 03-1H6304 10-1E3004 03-4H8904 | G130: 3 | H130: =fetchcomment(G130) -> O.C. JONES & SONS, INC. BAY CITIES PAVING & GRADING, INC. ST. FRANCIS ELECTRIC LLC | I130: 3,10
A131: K & G CONCRETE PUMPING | B131: -4142 | C131: 28899 | D131: M | E131: 1 | F131: =fetchcomment(E131) -> 01-0E11U4 | G131: 1 | H131: =fetchcomment(G131) -> GRANITE CONSTRUCTION COMPANY | I131: 1
A132: SYNERGY TRAFFIC CONTROL | B132: -4142 | C132: 853050 | D132: M | E132: 2 | F132: =fetchcomment(E132) -> 06-0X3304 11-2T3434 | G132: 2 | H132: =fetchcomment(G132) -> SECURITY PAVING COMPANY WALSH CONSTRUCTION COMPANY II, LLC | I132: 6,11
A133: TAYLOR WATER SERVICES | B133: -4142 | C133: 30000 | D133: M | E133: 1 | F133: =fetchcomment(E133) -> 01-0J6314 | G133: 1 | H133: =fetchcomment(G133) -> GRANTIE CONSTRUCTION COMPANY | I133: 1
A134: THE QUALITY FIRM, ACS, AC | B134: -4142 | C134: 147610 | D134: M | E134: 2 | F134: =fetchcomment(E134) -> 11-430394 07-322504 | G134: 2 | H134: =fetchcomment(G134) -> GRIFFITH COMPANY BEADOR CONSTRUCTION COMPANY, INC. | I134: 7,11
A135: THOMPSON CONTRACTING | B135: -4142 | C135: 483240 | D135: M | E135: 3 | F135: =fetchcomment(E135) -> 03-1H6304 04-4J5404 03-22J3204 | G135: 2 | H135: =fetchcomment(G135) -> O.C. JONES & SONS, INC. GHILOTTI BROS, INC. | I135: 3,4
A136: TK TRANSPORTATION | B136: -4142 | C136: 117640 | D136: M | E136: 1 | F136: =fetchcomment(E136) -> 02-4H6604 | G136: 1 | H136: =fetchcomment(G136) -> STIMPEL-WIEBELHAUS ASSOCIATES INC | I136: 2
F137: =fetchcomment(E137) ->  | H137: =fetchcomment(G137) -> 
A139: Sub Cont Asian | B139: Column1 | C139: Dollars | D139: M/F | E139: Contract | F139: Contract # | G139: Number of Primes | H139: Prime Name | I139: Districts
A140: A1 TRUCKING SVS, INC. | B140: 43 | C140: 13161037.12 | D140: M | E140: 7 | F140: =fetchcomment(E140) -> 04-2G7804 10-1E3004 04-1Q5814 06-0X3004 04-0Q0704 04-3W7504 04-3W7604 | G140: 4 | H140: =fetchcomment(G140) -> FBD VANGUARD CONSTRUCTION, INC. BAY CITIES PAVING & GRADING, INC. ST. FRANCIS ELECTRIC LLC AMERICAN CIVIL CONSTRUCTORS WEST COAST, LLC dba ACC WEST COAST | I140: 4,6,10
A141: ACCURATE EARTHWORKS INC | B141: -4142 | C141: 419875.2 | D141: M | E141: 1 | F141: =fetchcomment(E141) -> 04-0K1304 | G141: 1 | H141: =fetchcomment(G141) -> DESILVA GATES CONSTRUCTION LLC | I141: 4
A142: CHANNA TRUCKING INC | B142: 43 | C142: 141300 | D142: F | E142: 1 | F142: =fetchcomment(E142) -> 04-0K7804 | G142: 1 | H142: =fetchcomment(G142) -> GHILOTTI BROS INC | I142: 4
A143: DESTINATION ANYWHERE, INC. | B143: -4142 | C143: 1048545 | D143: M | E143: 1 | F143: =fetchcomment(E143) -> 03-1H6304 | G143: 1 | H143: =fetchcomment(G143) -> O.C. JONES & SONS, INC. | I143: 3
A144: HEIR & SON CONSTRUCTION, INC. | B144: -4142 | C144: 52764.2 | D144: M | E144: 1 | F144: =fetchcomment(E144) -> 04-3W7604 | G144: 1 | H144: =fetchcomment(G144) -> AMERICAN CIVIL CONSTRUCTORS WEST COAST, LLC | I144: 4
A145: JASS BOYS TRUCK LINES | B145: -4142 | C145: 3505900 | D145: M | E145: 2 | F145: =fetchcomment(E145) -> 04-4J5404 10-1E3004 | G145: 2 | H145: =fetchcomment(G145) -> GHILOTTI BROS, INC. BAY CITIES PAVING & GRADING, INC. | I145: 4,10
A146: S & S TRUCKING | B146: 43 | C146: 25800 | D146: M | E146: 1 | F146: =fetchcomment(E146) -> 04-3Q7604 | G146: 1 | H146: =fetchcomment(G146) -> GHILOTTI BROS INC | I146: 4
A147: SEQUOIA CONSULTANT INC | B147: 33 | C147: 1602005 | D147: M | E147: 9 | F147: =fetchcomment(E147) -> 03-4H0704 07-322904 03-4H6004 11-430254 12-0S1504 05-1H3104 08-1J2604 11-2T3434 03-3H6104 | G147: 8 | H147: =fetchcomment(G147) -> ST. FRANCIS ELECTRIC LLC C. A. RASMUSSEN, INC. DESILVA GATES CONSTRUCTION CSI/CJA A JOINT VENTURE POWELL CONSTRUCTORS INC GRANITE CONSTRUCTION COMPANY MARTIN MARIETTA SAN DIEGO AGGREGATES LLC DBA ATP GENERAL ENGINEERING CONTRACTORS WALSH CONSTRUCTION COMPANY II, LLC | I147: 3,5,7,8,11,12
A148: SIERRA GEOTECH DBE, INC. | B148: -4142 | C148: 625976 | D148: F | E148: 5 | F148: =fetchcomment(E148) -> 03-1H9904 03-3H6104 04-3Q7604 01-0H1504 06-0X2604 | G148: 4 | H148: =fetchcomment(G148) -> A. TEICHERT & SON INC DBA TEICHERT CONSTRUCTION DESILVA GATES CONSTRUCTION LLC GHILOTTI BROS INC GRANITE CONSTRUCTION COMPANY | I148: 1,3,4,6
A149: SONNY'S TRUCKING | B149: 43 | C149: 160500 | D149: M | E149: 1 | F149: =fetchcomment(E149) -> 10-1E3004 | G149: 1 | H149: =fetchcomment(G149) -> BAY CITIES PAVING & GRADING, INC. | I149: 10
A150: TSI ENGINEERING, INC. | B150: -4142 | C150: 12238307.83 | D150: M | E150: 1 | F150: =fetchcomment(E150) -> 10-1C2704 | G150: 1 | H150: =fetchcomment(G150) -> TSI ENGINEERING, INC. | I150: 10
F151: =fetchcomment(E151) ->  | H151: =fetchcomment(G151) -> 
A153: Asian Pacific | B153: Column1 | C153: Dollars | D153: M/F | E153: Contract | F153: Contract # | G153: Number of Primes | H153: Prime Name | I153: Districts
A154: ACE FENCE COMPANY | B154: -4142 | C154: 4383274.45 | D154: F | E154: 12 | F154: =fetchcomment(E154) -> 06-0X3304 07-320804 11-430394 11-430254 12-0S1504 05-1H3104 07-351304 08-1J2604 11-2T3434 06-0W9704 06-0X3804 07-322504 | G154: 10 | H154: =fetchcomment(G154) -> SECURITY PAVING COMPANY CALPROMAX ENGINEERING, INC. GRIFFITH COMPANY POWELL CONSTRUCTORS INC CSI/CJA A JOINT VENTURE GRANITE CONSTRUCTION COMPANY MARTIN MARIETTA SAN DIEGO AGGREGATES LLC DBA ATP GENERAL ENGINEERING CONTRACTORS WALSH CONSTRUCTION COMPANY II, LLC BORTOLUSSI & WATKIN INC BEADOR CONSTRUCTION COMPANY, INC. | I154: 5,6,7,8,11,12
A155: BAY TECH ENGINEERING, INC. | B155: -4142 | C155: 1607500 | D155: M | E155: 1 | F155: =fetchcomment(E155) -> 04-2Q5704 | G155: 1 | H155: =fetchcomment(G155) -> DISNEY CONSTRUCTION, INC. | I155: 4
A156: BRIDGE RUBBER BEARING | B156: -4142 | C156: 59896 | D156: M | E156: 4 | F156: =fetchcomment(E156) -> 01-0J6314 10-0G8304 01-0E11U4 03-3H6104 | G156: 3 | H156: =fetchcomment(G156) -> GRANTIE CONSTRUCTION COMPANY VIKING CONSTRUCTION COMPANY DESILVA GATES CONSTRUCTION LLC | I156: 1,3,10
A157: CALIFORNIA PROFESSIONAL | B157: -4142 | C157: 3595549 | D157: M | E157: 3 | F157: =fetchcomment(E157) -> 07-320804 07-321604 08-1J2604 | G157: 3 | H157: =fetchcomment(G157) -> CALPROMAX ENGINEERING, INC. R.J. NOBLE COMPANY MARTIN MARIETTA SAN DIEGO AGGREGATES LLC DBA ATP GENERAL ENGINEERING CONTRACTORS | I157: 7,8
A158: GLOBAL ROAD SEALING INC | B158: -4142 | C158: 2720714 | D158: M | E158: 7 | F158: =fetchcomment(E158) -> 06-0X3304 07-322904 12-0N8904 07-338604 08-496124 07-349504 12-0S3104 | G158: 4 | H158: =fetchcomment(G158) -> SECURITY PAVING COMPANY C. A. RASMUSSEN, INC. ALFARO COMMUNICATIONS CONSTRUCTION, INC. AUTOBAHN CONSTRUCTION INC. | I158: 6,7,8,12
A159: HUNSAKER & ASSOCIATES | B159: -4142 | C159: 115108 | D159: M | E159: 1 | F159: =fetchcomment(E159) -> 07-322904 | G159: 1 | H159: =fetchcomment(G159) -> C. A. RASMUSSEN, INC. | I159: 7
A160: JJ NGUYEN | B160: 33 | C160: 62752 | D160: M | E160: 1 | F160: =fetchcomment(E160) -> 04-4J5404 | G160: 1 | H160: =fetchcomment(G160) -> GHILOTTI BROS, INC. | I160: 4
A161: LMS TRANSPORT | B161: -4142 | C161: 2543228.51 | D161: M | E161: 3 | F161: =fetchcomment(E161) -> 06-0X3304 07-322904 11-430394 | G161: 3 | H161: =fetchcomment(G161) -> SECURITY PAVING COMPANY C. A. RASMUSSEN, INC. GRIFFITH COMPANY | I161: 6,7,11
A162: NITTA EROSION CONTROL | B162: -4142 | C162: 14448 | D162: F | E162: 2 | F162: =fetchcomment(E162) -> 02-4H0004 01-0H1504 | G162: 2 | H162: =fetchcomment(G162) -> ROCKY MOUNTAIN CONSTRUCTION GRANITE CONSTRUCTION COMPANY | I162: 1,2
A163: PRIME SUPPLY 1 | B163: -4142 | C163: 240286.66 | D163: F | E163: 6 | F163: =fetchcomment(E163) -> 08-1C5704 10-1H6504 03-1H9904 05-1H3104 07-347504 11-2T3434 | G163: 6 | H163: =fetchcomment(G163) -> SEMA CONSTRUCTION INC MARINA LANDSCAPE INC A. TEICHERT & SON INC DBA TEICHERT CONSTRUCTION GRANITE CONSTRUCTION COMPANY GRIFFITH COMPANY WALSH CONSTRUCTION COMPANY II, LLC | I163: 3,5,7,8,10,11
A164: TRI COUNTIES TRUCKING | B164: 43 | C164: 4575641 | D164: F | E164: 4 | F164: =fetchcomment(E164) -> 03-4H0704 03-1H9904 02-4H0004 03-3H6104 | G164: 3 | H164: =fetchcomment(G164) -> DESILVA GATES CONSTRUCTION A. TEICHERT & SON INC DBA TEICHERT CONSTRUCTION ROCKY MOUNTAIN CONSTRUCTION | I164: 2,3
A165: TRAFFIC LOOPS CRACKFILLING | B165: -4142 | C165: 264700 | D165: F | E165: 1 | F165: =fetchcomment(E165) -> 11-430254 | G165: 1 | H165: =fetchcomment(G165) -> CSI/CJA A JOINT VENTURE | I165: 11
F166: =fetchcomment(E166) ->  | H166: =fetchcomment(G166) -> 
A168: Other | B168: Column1 | C168: Dollars | D168: M/F | E168: Contract | F168: Contract # | G168: Number of Primes | H168: Prime Name | I168: Districts
A169: ALFARO COMMUNICATIONS CONSTRUCTION, INC. | C169: ='[1]Construction Worksheet'!AW10 -> 1350925.9 | D169: M | E169: 1 | F169: =fetchcomment(E169) -> 08-1J6804 | G169: 1 | H169: =fetchcomment(G169) -> ALFARO COMMUNICATIONS CONSTRUCTION INC | I169: 8
F170: =fetchcomment(E170) ->  | H170: =fetchcomment(G170) -> 
A172: Non Minority Women | B172: Column1 | C172: Dollars | D172: M/F | E172: Contract | F172: Contract # | G172: Number of Primes | H172: Prime Name | I172: Districts
A173: ACTION SWEEPING SERVICES, INC. | B173: 43 | C173: 463440 | D173: F | E173: 3 | F173: =fetchcomment(E173) -> 03-1H6304 03-2J3204 04-1J9604 | G173: 1 | H173: =fetchcomment(G173) -> O.C. JONES & SONS, INC. | I173: 3,4
A174: ALTA GROUP | B174: -4142 | C174: 1174003 | D174: F | E174: 3 | F174: =fetchcomment(E174) -> 01-0E11U4 10-1E3004 04-0Q6104 | G174: 3 | H174: =fetchcomment(G174) -> GRANITE CONSTRUCTION COMPANY BAY CITIES PAVING & GRADING, INC. HOSELEY CORPORATION | I174: 1,4,10
A175: AMERICAN PAVING SUPPLY | B175: 33 | C175: 616204.21 | D175: F | E175: 2 | F175: =fetchcomment(E175) -> 11-430254 10-1E3004 | G175: 1 | H175: =fetchcomment(G175) -> CSI/CJA A JOINT VENTURE BAY CITIES PAVING & GRADING, INC. | I175: 10,11
A176: ANYTHING WORKS | B176: -4142 | C176: 75400 | D176: F | E176: 1 | F176: =fetchcomment(E176) -> 01-0H1504 | G176: 1 | H176: =fetchcomment(G176) -> GRANITE CONSTRUCTION COMPANY | I176: 1
A177: AURORA INDUSTRIAL HYGIENE | B177: -4142 | C177: 4200 | D177: F | E177: 2 | F177: =fetchcomment(E177) -> 05-1H3104 06-0W9704 | G177: 2 | H177: =fetchcomment(G177) -> GRANITE CONSTRUCTION COMPANY BORTOLUSSI & WATKIN | I177: 5,6
A178: AVILA TRAFFIC SAFETY | B178: 33 | C178: 463900 | D178: F | E178: 1 | F178: =fetchcomment(E178) -> 06-0U4304 | G178: 1 | H178: =fetchcomment(G178) -> GRIFFITH COMPANY | I178: 6
A179: BANCROFT CONSTRUCTION SERVICES | B179: 43 | C179: 622237 | D179: F | E179: 1 | F179: =fetchcomment(E179) -> 11-2T3434 | G179: 1 | H179: =fetchcomment(G179) -> WALSH CONSTRUCTION COMPANY II, LLC | I179: 11
A180: BOBS BACKHOE & TRUCKING | B180: 43 | C180: 213231 | D180: F | E180: 1 | F180: =fetchcomment(E180) -> 05-1H3104 | G180: 1 | H180: =fetchcomment(G180) -> GRANITE CONSTRUCTION COMPANY | I180: 5
A181: CAL SIGNAL CORP | B181: 33 | C181: 994034.89 | D181: F | E181: 4 | F181: =fetchcomment(E181) -> 02-3H6504 02-4H0204 02-4H0504 10-1E3004 | G181: 3 | H181: =fetchcomment(G181) -> J.F. SHEA CONSTRUCTION INC TULLIS INC BAY CITIES PAVING & GRADING, INC. | I181: 2,10
A182: CALIFORNIA CONSTRUCTION | B182: -4142 | C182: 179440 | D182: F | E182: 1 | F182: =fetchcomment(E182) -> 06-0X2604 | G182: 1 | H182: =fetchcomment(G182) -> A. TEICHERT & SON, INC. DBA TEICHERT CONSTRUCTION | I182: 6
A183: CAT TRACKING | B183: -4142 | C183: 300027.25 | D183: F | E183: 2 | F183: =fetchcomment(E183) -> 07-320804 06-1A4604 | G183: 2 | H183: =fetchcomment(G183) -> CALPROMAX ENGINEERING, INC. CAL VALLEY CONSTRUCTION INC | I183: 6,7
A184: CES | B184: -4142 | C184: 91647 | D184: F | E184: 1 | F184: =fetchcomment(E184) -> 12-0N8904 | G184: 1 | H184: =fetchcomment(G184) -> SECURITY PAVING COMPANY, INC. | I184: 12
A185: CHAVEZ GENERAL ENGINEERING | B185: -4142 | C185: 3798000 | D185: F | E185: 2 | F185: =fetchcomment(E185) -> 02-3H6804 02-4H0004 | G185: 2 | H185: =fetchcomment(G185) -> J.F. SHEA CONSTRUCTION ROCKY MOUNTAIN CONSTRUCTION | I185: 2
A186: CMC TRAFFIC CONTROL | B186: -4142 | C186: 372880 | D186: F | E186: 3 | F186: =fetchcomment(E186) -> 04-2G7804 04-0Q6104 04-4K1404 | G186: 3 | H186: =fetchcomment(G186) -> FBD VANGUARD CONSTRUCTION, INC. HOSELEY CORPORATION GRANITE ROCK COMPANY | I186: 4
A187: COLUMBIA ELECTRIC, INC. | B187: -4142 | C187: 2513556 | D187: F | E187: 4 | F187: =fetchcomment(E187) -> 04-2G7804 04-0K7804 04-4J5404 04-1Q5814 | G187: 3 | H187: =fetchcomment(G187) -> FBD VANGUARD CONSTRUCTION, INC. GHILOTTI BROS INC BAY CITIES PAVING & GRADING, INC. | I187: 4
A188: COOPER ENGINEERING | B188: 33 | C188: 847255.25 | D188: F | E188: 1 | F188: =fetchcomment(E188) -> 11-430254 | G188: 1 | H188: =fetchcomment(G188) -> CSI/CJA A JOINT VENTURE | I188: 11
A189: DEES BURKE ENGINEERING | B189: -4142 | C189: 8171038.82 | D189: F | E189: 13 | F189: =fetchcomment(E189) -> 01-0J6314 02-3H6804 10-0G8304 03-1H9904 11-430394 03-4H6004 04-0K7804 12-0S1504 04-4J5404 07-351304 03-3H6104 04-1J9604 06-0X3004 | G189: 10 | H189: =fetchcomment(G189) -> GRANTIE CONSTRUCTION COMPANY J.F. SHEA CONSTRUCTION COMPANY INC VIKING CONSTRUCTION COMPANY INC A. TEICHERT & SON INC DBA TEICHERT CONSTRUCTION GRIFFITH COMPANY DESILVA GATES CONSTRUCTION GHILOTTI BROS INC POWELL CONSTRUCTORS O.C. JONES AND SONS INC BAY CITIES PAVING & GRADING INC | I189: 1,2,3,4,6,7,10,11,12
A190: DIVERSIFIED LANDSCAPE CO | B190: -4142 | C190: 6848690.3 | D190: F | E190: 5 | F190: =fetchcomment(E190) -> 11-430254 08-1J2604 07-349504 07-322504 08-1E3404 | G190: 5 | H190: =fetchcomment(G190) -> CSI/CJA A JOINT VENTURE MARTIN MARIETTA SAN DIEGO AGGREGATES LLC DBA ATP GENERAL ENGINEERING CONTRACTORS ALFARO COMMUNICATIONS CONSTRUCTION INC BEADOR CONSTRUCTION COMPANY, INC. DIVERSCAPE, INC. DBA DIVERSIFIED LANDSCAPE CO. | I190: 7,8,11
A191: DOUBLE E TRANSPORTATION | B191: 33 | C191: 2530997.75 | D191: F | E191: 2 | F191: =fetchcomment(E191) -> 06-0U4304 06-0X3804 | G191: 1 | H191: =fetchcomment(G191) -> GRIFFITH COMPANY | I191: 6
A192: EVERLIGHTS, INC. | B192: -4142 | C192: 1977390 | D192: F | E192: 1 | F192: =fetchcomment(E192) -> 07-355104 | G192: 1 | H192: =fetchcomment(G192) -> ALDRIDGE ELECTRIC, INC. | I192: 7
A193: GALLAWAY ENTERPRISES | B193: -4142 | C193: 107806 | D193: F | E193: 4 | F193: =fetchcomment(E193) -> 02-4H0204 03-4H6004 03-1H6304 03-3H6104 | G193: 3 | H193: =fetchcomment(G193) -> TULLIS INC DESILVA GATES CONSTRUCTION O.C. JONES & SONS, INC. | I193: 2,3
A194: GDS INDUSTRIES, INC. | B194: -4142 | C194: 234376.12 | D194: F | E194: 2 | F194: =fetchcomment(E194) -> 03-4H8904 04-0Q0704 | G194: 1 | H194: =fetchcomment(G194) -> ST. FRANCIS ELECTRIC LLC | I194: 3,4
A195: J & M LAND RESTORATION INC | B195: -4142 | C195: 1356860 | D195: F | E195: 4 | F195: =fetchcomment(E195) -> 06-0X3304 06-0U4304 06-0X3804 09-368004 | G195: 3 | H195: =fetchcomment(G195) -> SECURITY PAVING COMPANY GRIFFITH COMPANY PAPICH CONSTRUCTION COMPANY INC | I195: 6,9
A196: JARRETT FOUNDATIONS INC. | B196: 33 | C196: 584670 | D196: F | E196: 1 | F196: =fetchcomment(E196) -> 01-0E11U4 | G196: 1 | H196: =fetchcomment(G196) -> GRANITE CONSTRUCTION COMPANY | I196: 1
A197: JOHNS EQUIPMENT RENTAL | B197: 43 | C197: 361536 | D197: F | E197: 1 | F197: =fetchcomment(E197) -> 11-430254 | G197: 1 | H197: =fetchcomment(G197) -> CSI/CJA A JOINT VENTURE | I197: 11
A198: K&K CONSTRUCTION SUPPLY, INC. | B198: 33 | C198: 783559.76 | D198: F | E198: 1 | F198: =fetchcomment(E198) -> 03-1H9904 | G198: 1 | H198: =fetchcomment(G198) -> A. TEICHERT & SON INC DBA TEICHERT CONSTRUCTION | I198: 3
A199: LD INNOVATIONS | B199: -4142 | C199: 3593249.4 | D199: F | E199: 3 | F199: =fetchcomment(E199) -> 04-0K1304 03-4H8904 04-0Q0704 | G199: 1 | H199: =fetchcomment(G199) -> ST. FRANCIS ELECTRIC LLC | I199: 3,4
A200: LINDYS COLD PLANNING | B200: -4142 | C200: 6188183 | D200: F | E200: 7 | F200: =fetchcomment(E200) -> 08-1G6404 07-322904 11-430394 11-430254 05-1H3104 09-368004 07-322504 | G200: 7 | H200: =fetchcomment(G200) -> SULLY-MILLER CONTRACTING COMPANY C. A. RASMUSSEN, INC. GRIFFITH COMPANY CSI/CJA A JOINT VENTURE GRANITE CONSTRUCTION COMPANY PAPICH CONSTRUCTION COMPANY, INC. BEADOR CONSTRUCTION COMPANY, INC. | I200: 5,7,8,9,11
A201: LMS TRANSPORT | B201: 33 | C201: 2585022.4 | D201: F | E201: 4 | F201: =fetchcomment(E201) -> 07-321604 05-1H3104 11-2T3434 09-368004 | G201: 4 | H201: =fetchcomment(G201) -> R.J.NOBLE COMPANY GRANITE CONSTRUCTION COMPANY WALSH CONSTRUCTION COMPANY II, LLC PAPICH CONSTRUCTION COMPANY, INC. | I201: 5,7,9,11
A202: LOWERS INDUSTRIAL SUPPLY | B202: 33 | C202: 394898.47 | D202: F | E202: 2 | F202: =fetchcomment(E202) -> 12-0S1504 07-351304 | G202: 1 | H202: =fetchcomment(G202) -> POWELL CONSTRUCTORS INC | I202: 7,12
A203: MCW TRAFFIC CONTROL | B203: -4142 | C203: 541295 | D203: F | E203: 4 | F203: =fetchcomment(E203) -> 02-4H6604 10-1L6304 03-1H6304 10-1E3004 | G203: 4 | H203: =fetchcomment(G203) -> STIMPEL-WIEBELHAUS ASSOCIATES INC CORAL CONSTRUCTION COMPANY O.C. JONES & SONS, INC. BAY CITIES PAVING & GRADING, INC. | I203: 2,5,10
A204: MOUNTAINVEIW BIOLOGICAL | B204: -4142 | C204: 182299.84 | D204: F | E204: 2 | F204: =fetchcomment(E204) -> 08-1C5704 08-1H9914 | G204: 2 | H204: =fetchcomment(G204) -> SEMA CONSTRUCTION INC PETERSON-CHASE GENERAL ENGINEERING CONSTRUCTION INC. | I204: 8
A205: NICHOLLS TRUCKING INC | B205: 43 | C205: 648750 | D205: F | E205: 1 | F205: =fetchcomment(E205) -> 01-0H6104 | G205: 1 | H205: =fetchcomment(G205) -> MERCER FRASER COMPANY | I205: 1
A206: PAYCO SPECIALTIES | B206: -4142 | C206: 1895878 | D206: F | E206: 4 | F206: =fetchcomment(E206) -> 11-430304 11-430394 11-430254 11-2T3434 | G206: 4 | H206: =fetchcomment(G206) -> SB GENERAL ENGINEERING INC GRIFFITH COMPANY CSI/CJA A JOINT VENTURE WALSH CONSTRUCTION COMPANY II, LLC | I206: 11
A207: PC & N CONSTRUCTION INC | B207: -4142 | C207: 3625685.09 | D207: F | E207: 11 | F207: =fetchcomment(E207) -> 02-3H6804 02-4H0204 02-3H6504 10-1L6304 02-4H0504 04-0K7804 10-1E3004 04-1Q5814 02-4H0004 04-0Q6104 06-0X2604 | G207: 6 | H207: =fetchcomment(G207) -> J.F. SHEA CONSTRUCTION INC TULLIS INC CORAL CONSTRUCTION COMPANY GHILOTTI BROS BAY CITIES PAVING & GRADING, INC. ROCKY MOUNTAIN CONSTRUCTION HOSELEY CORPORATION A. TEICHERT & SON, INC. DBA TEICHERT CONSTRUCTION | I207: 2,4,6,10
A208: PLAYA SAFETY, INC. | B208: -4142 | C208: 402407.92 | D208: F | E208: 5 | F208: =fetchcomment(E208) -> 07-351304 08-1H9914 10-1E3004 11-2T3434 12-0S3104 | G208: 5 | H208: =fetchcomment(G208) -> POWELL CONSTRUCTORS, INC. PETERSON-CHASE GENERAL ENGINEERING CONSTRUCTION INC. BAY CITIES PAVING & GRADING, INC. WALSH CONSTRUCTION COMPANY II, LLC AUTOBAHN CONSTRUCTION INC. | I208: 7,8,10,11,12
A209: QUALITY HYDROSEEDING & RESTORATION | B209: 33 | C209: 447000 | D209: F | E209: 1 | F209: =fetchcomment(E209) -> 08-1J2604 | G209: 1 | H209: =fetchcomment(G209) -> MARTIN MARIETTA SAN DIEGO AGGREGATES LLC DBA ATP GENERAL ENGINEERING CONTRACTORS | I209: 8
... 39 more rows
